[Event "Italian-ch Teams-B 2022"]
[Site "Montesilvano"]
[Date "2022.04.19"]
[Round "1.3"]
[White "D'Amore, Carlo"]
[Black "Lanzani, Mario"]
[Result "1/2-1/2"]
[ECO "A07"]
[WhiteElo "2406"]
[BlackElo "2266"]
[Annotator "TA"]
[PlyCount "87"]
[EventDate "2022.04.19"]
[EventType "team-tourn"]
[EventCountry "ITA"]
[SourceTitle "playchess.com"]
[Source "ChessBase"]
[SourceQuality "1"]
[TimeControl "40/5400+30:1800+30"]

{[%evp 16,87,16,4,14,0,0,-30,8,11,6,0,0,-13,-9,-10,-10,-1,20,1,18,0,0,0,0,0,10,18,11,8,0,0,0,0,10,15,37,37,106,105,105,108,106,109,101,98,105,32,41,32,34,0,0,0,0,0,0,0,0,0,0,0,0,0,0,0,0,0,0,0,0,0,0,0]} 1. Nf3 {[%emt 0:00:03]} d5 {[%emt 0:00:16]} 2. g3 {[%emt 0:00:11]} c6 {[%emt 0:00:18]} 3. Bg2 {[%emt 0:01:00]} Bg4 {[%emt 0:00:15]} 4. d3 {[%emt 0:00:32]} Nd7 {[%emt 0:00:37]} 5. Nbd2 {[%emt 0:00:15]} e6 {[%emt 0:00:51]} 6. h3 {[%emt 0:00:52]} Bh5 {[%emt 0:00:22]} 7. e4 {[%emt 0:01:16]} Bc5 {[%emt 0:09:29]} 8. O-O {[%emt 0:02:59]} Ngf6 {[%emt 0:04:48][%cal Bg8f6,Bf6e8,Be8c7,Bc7e6][%mdl 32]} 9. Qe1 {[%emt 0:03:59]} O-O {[%emt 0:02:43] A07: Réti Opening: New York and Capablanca Systems.} 10. a3 {[%emt 0:00:08]} a5 {[%emt 0:02:27]} 11. b3 {[%emt 0:00:03] [#]} Ne8 $146 {[%emt 0:03:47] Black has an edge.} ({Predecessor:} 11... e5 12. Bb2 Re8 13. Nh4 Nf8 14. Bf3 Bg6 15. Nxg6 hxg6 16. Bg2 dxe4 17. Nxe4 Bd4 18. c3 Bb6 19. Qe2 Nh5 20. Kh2 Bc7 {0-1 (20) Laketic,G (2462)-Sanchez,J (2472) Noale 2010}) 12. Bb2 {[%emt 0:00:32]} Nc7 {[%emt 0:01:12]} 13. exd5 {[%emt 0:21:53]} exd5 {[%emt 0:03:12]} 14. Qc1 {[%emt 0:05:50]} Re8 {[%emt 0:04:02]} 15. Nd4 {[%emt 0:01:59]} Ne6 {[%emt 0:04:56]} 16. N2f3 {[%emt 0:03:36]} (16. Nxe6 {is interesting.} Rxe6 17. Nf3 Re8 18. Re1) 16... Bxf3 {[%emt 0:03:09]} 17. Nxf3 {[%emt 0:02:41]} Be7 {[%emt 0:03:24]} 18. Qd2 {[%emt 0:02:01]} Bf6 {[%emt 0:01:14]} 19. Bxf6 {[%emt 0:01:01]} Qxf6 {[%emt 0:01:09]} 20. Rae1 {[%emt 0:02:12]} Qb2 {[%emt 0:10:08]} 21. a4 {[%emt 0:00:39]} Qa3 {[%emt 0:02:57]} 22. h4 {[%emt 0:00:45]} Qb4 {[%emt 0:01:20]} 23. Qxb4 {[%emt 0:06:50]} axb4 {[%emt 0:00:18]} 24. Bh3 {[%emt 0:00:04]} Ndc5 {[%emt 0:06:48]} 25. Re3 {[%emt 0:04:40]} h6 {[%emt 0:02:36]} 26. Rfe1 {[%emt 0:00:08]} Kf8 {[%emt 0:01:35]} ({Black should try} 26... g6 $14) 27. d4 $16 {[%emt 0:01:29]} Ne4 {[%emt 0:02:20]} 28. Bf5 {[%emt 0:00:11]} Rad8 {[%emt 0:02:07]} 29. Bxe4 {[%emt 0:00:31]} dxe4 {[%emt 0:00:16]} 30. Rxe4 {[%emt 0:00:04]} Rd5 {[%emt 0:00:32]} 31. R1e3 {[%emt 0:08:49]} (31. Ne5 $16) 31... Red8 $14 {[%emt 0:02:19][%cal Re6d4]} 32. Rd3 {[%emt 0:00:07]} c5 {[%emt 0:01:40][%cal Re6d4]} 33. dxc5 {[%emt 0:07:45] [#] And now Rxd5 would win.} (33. Kg2 $5 {[%cal Rd4c5]}) 33... Rxd3 {[%emt 0:00:46] The position is equal.} 34. cxd3 {[%emt 0:00:03]} Rxd3 {[%emt 0:01:14][%mdl 4096] Endgame KRN-KRN} 35. Ne5 {[%emt 0:03:37]} Rxb3 {[%emt 0:02:02]} 36. c6 {[%emt 0:00:02]} bxc6 {[%emt 0:02:34]} 37. Nxc6 {[%emt 0:00:04]} Nc5 {[%emt 0:02:50]} 38. Rd4 {[%emt 0:01:06][%cal Rd4d8] [#]} g6 {[%emt 0:02:25]} 39. Nxb4 {[%emt 0:06:47]} Ra3 {[%emt 0:03:01]} 40. h5 {[%emt 0:03:39]} Rxa4 {[%emt 0:03:11]} 41. hxg6 {[%emt 0:30:54]} fxg6 {[%emt 0:30:12]} 42. Rd8+ {[%emt 0:00:12]} Kg7 {[%emt 0:00:28]} 43. Nd3 {[%emt 0:02:21]} Nxd3 {[%emt 0:00:32]} 44. Rxd3 {[%emt 0:00:05] Weighted Error Value: White=0.07 (flawless) /Black=0.07 (flawless)} 1/2-1/2

[Event "Italian-ch Teams-B 2022"]
[Site "Montesilvano"]
[Date "2022.04.19"]
[Round "1.3"]
[White "Quinn, Mark"]
[Black "Podetti, Davide"]
[Result "1-0"]
[ECO "E04"]
[WhiteElo "2365"]
[BlackElo "2231"]
[Annotator "TA"]
[PlyCount "111"]
[EventDate "2022.04.19"]
[EventType "team-tourn"]
[EventCountry "ITA"]
[SourceTitle "playchess.com"]
[Source "ChessBase"]
[SourceQuality "1"]
[TimeControl "40/5400+30:1800+30"]

{[%evp 12,111,45,44,35,34,40,38,39,20,31,18,27,21,29,15,55,51,46,65,40,29,14,23,60,54,137,127,230,224,520,500,675,491,907,925,918,905,851,824,707,595,595,441,382,295,229,62,76,0,57,57,271,0,212,210,212,203,382,382,416,358,728,681,650,673,661,580,2887,2887,2500,2095,1986,1780,4806,406,1150,2658,1707,2452,2068,2227,2022,1703,29966,29964,29968,2641,29971,29972,29969,29971,29969,29967,5102,1458,5716,6331,29950,11044,1582,1182]} 1. d4 {[%emt 0:00:09]} d5 {[%emt 0:00:30]} 2. Nf3 {[%emt 0:00:19]} Nf6 {[%emt 0:00:47]} 3. c4 {[%emt 0:00:15]} c6 {[%emt 0:00:28]} 4. g3 {[%emt 0:00:14]} e6 {[%emt 0:05:42]} 5. Bg2 {[%emt 0:00:21]} Nbd7 {[%emt 0:03:10]} 6. O-O {[%emt 0:01:56]} dxc4 {[%emt 0:02:12]} 7. a4 {[%emt 0:00:25]} b6 {[%emt 0:03:18] E04: Open Catalan: 5 Nf3.} 8. Nfd2 {[%emt 0:00:44]} Ba6 {[%emt 0:00:24]} 9. Bxc6 {[%emt 0:00:15]} Rc8 {[%emt 0:00:04] White is slightly better.} 10. Bg2 {[%emt 0:00:54]} Nb8 {[%emt 0:02:00]} 11. Nf3 {[%emt 0:08:00]} Nc6 {[%emt 0:16:17]} 12. Nc3 {[%emt 0:09:47]} Bb4 {[%emt 0:08:55] [#]} 13. Bg5 $146 {[%emt 0:35:02][%cal Oa4a5]} ({Predecessor:} 13. Re1 Na5 14. Rb1 Bb7 15. Bg5 h6 16. Bxf6 Qxf6 17. Ne5 h5 18. Bxb7 Nxb7 19. a5 {1-0 (38) Van Foreest,L (2563)-Murphy,C (2427) Cattolica 2022}) 13... Na5 {[%emt 0:25:04]} 14. Qc2 {[%emt 0:04:56][%cal Od4d5]} h6 {[%emt 0:04:02]} 15. Bxf6 {[%emt 0:04:43]} Qxf6 {[%emt 0:00:19]} 16. Rad1 {[%emt 0:02:42]} O-O {[%emt 0:05:23]} 17. Ne5 {[%emt 0:01:50] next Nd7 is good for White.} Rfd8 {[%emt 0:05:25] Inhibits Nd7.} 18. f4 {[%emt 0:02:24][%cal Bf2f4,Bf4f5][%mdl 32]} g6 {[%emt 0:01:07] Inhibits f5.} (18... Bd6 $14) 19. e3 $16 {[%emt 0:01:19] &Bianco is much more active.} Kg7 {[%emt 0:06:32]} (19... Bd6 $16) 20. g4 $18 {[%emt 0:02:37]} Rc7 $2 {[%emt 0:04:36]} (20... Bd6 21. g5 Qe7) 21. f5 {[%emt 0:09:12]} Qg5 {[%emt 0:02:10]} 22. Qf2 {[%emt 0:08:05]} Bxc3 {[%emt 0:01:56]} (22... gxf5 $142 23. h4 Qe7 24. gxf5 exf5 25. Qxf5 Qe6) 23. f6+ {[%emt 0:01:44]} (23. bxc3 gxf5 24. Qg3 (24. gxf5 exf5 25. Kh1 Bc8 $18) (24. h4 Qf6 $16) 24... Kg8 25. gxf5 Qxg3 26. hxg3 exf5 $16) 23... Kh7 {[%emt 0:00:25]} 24. bxc3 {[%emt 0:01:03]} h5 {[%emt 0:00:17]} 25. h4 {[%emt 0:00:38]} Qh6 {[%emt 0:00:01]} 26. g5 {[%emt 0:01:55]} Qf8 {[%emt 0:00:03]} 27. Bf3 {[%emt 0:00:22]} Bb7 {[%emt 0:01:17]} 28. e4 {[%emt 0:01:04][%cal Be3e4,Be4e5][%mdl 32]} Nc6 {[%emt 0:00:32] [#]} 29. Nxc6 {[%emt 0:00:41]} ({Stronger than} 29. Nxc4 Ba6 30. Be2 Bxc4 31. Bxc4 Na5 $17) (29. Nxg6 $1 $18 {[%mdl 512]} Kxg6 (29... fxg6 30. Bxh5) 30. Qe2) 29... Bxc6 $14 {[%emt 0:00:27]} 30. Qe2 {[%emt 0:00:07]} (30. Ra1 $16) 30... Qd6 {[%emt 0:01:21]} (30... Bxa4 $11 31. Ra1 Bc6) 31. e5 $36 {[%emt 0:01:40][%mdl 2048] White is more active.} Bxf3 $2 {[%emt 0:00:35]} 32. Qxf3 $2 {[%emt 0:00:29]} (32. exd6 $18 Bxe2 33. dxc7) 32... Qd5 $2 {[%emt 0:00:19]} (32... Qd7 $1 $11 {and Black stays safe.}) 33. Qxd5 $18 {[%emt 0:00:14]} Rxd5 {[%emt 0:00:02][%mdl 4096] Endgame KRR-KRR} 34. Rb1 {[%emt 0:00:11] Hoping for Rb5.} Kg8 $2 {[%emt 0:00:48]} (34... Ra5 35. Rb4 Rc8) 35. Rb5 {[%emt 0:00:33]} Kf8 {[%emt 0:00:54]} 36. Rfb1 {[%emt 0:00:38]} Rxb5 $2 {[%emt 0:00:37]} (36... Rd8 37. a5 bxa5 38. Rxa5 Ke8) 37. axb5 {[%emt 0:00:46][%cal Ba4b5,Bb5a6][%mdl 32] KR-KR} Ke8 {[%emt 0:00:16]} 38. Kf2 {[%emt 0:00:26]} Kd7 {[%emt 0:00:42]} 39. Ke3 {[%emt 0:00:13]} ({Less strong is} 39. Ra1 Kd8 40. Ke3 Ke8 $18) 39... a5 {[%emt 0:00:32]} 40. bxa6 {[%emt 0:00:40]} Kc6 {[%emt 0:00:00]} 41. d5+ {[%emt 0:19:34]} Kxd5 {[%emt 0:20:04]} 42. Rxb6 {[%emt 0:00:47] White threatens Rb7 and mate.} Ra7 {[%emt 0:00:17]} 43. Rb5+ {[%emt 0:04:00]} (43. Kf4 $142 Ra8 44. Rd6+ Kc5 45. Rd7 Rxa6 46. Rxf7) 43... Kc6 {[%emt 0:00:11]} 44. Rb7 {[%emt 0:00:12]} ({Not} 44. Ra5 Kb6 45. Ra4 Rxa6 46. Rxc4 Ra5 $14) 44... Rxa6 {[%emt 0:00:13]} 45. Rxf7 {[%emt 0:00:05] White wants to mate with Re7.} Kd5 {[%emt 0:00:16]} 46. Kf4 {[%emt 0:00:13]} Ra1 {[%emt 0:00:24]} 47. Rd7+ {[%emt 0:00:17]} Kc5 {[%emt 0:00:15]} 48. Rd2 {[%emt 0:03:16]} Rb1 {[%emt 0:01:40]} 49. Rf2 {[%emt 0:00:32]} (49. Kf3 $142 Rb3 50. Rd8 Rb1 51. Rd6 Rb8 52. Rxe6 Kd5 53. Re7 Rb1 54. Ke2) 49... Kd5 {[%emt 0:00:22]} 50. f7 {[%emt 0:00:21]} Rb8 {[%emt 0:00:13]} 51. Rd2+ {[%emt 0:00:15]} Kc5 {[%emt 0:00:13]} 52. Ke4 {[%emt 0:00:13]} Rf8 {[%emt 0:00:29]} 53. Rf2 {[%emt 0:01:31]} (53. Rd7 $142 Kb5 54. Re7) 53... Kb5 {[%emt 0:00:08]} 54. Rf6 {[%emt 0:00:08][%csl LRe6,LRg6]} Ka4 {[%emt 0:00:38]} 55. Rxe6 {[%emt 0:00:48] Intending Rf6 and mate.} Rxf7 {[%emt 0:00:06]} 56. Rb6 {[%emt 0:00:17] Weighted Error Value: White=0.50/Black=1.04} 1-0

[Event "Italian-ch Teams-B 2022"]
[Site "Montesilvano"]
[Date "2022.04.19"]
[Round "1.4"]
[White "Mazzilli, Piero"]
[Black "Bellia, Fabrizio"]
[Result "1/2-1/2"]
[ECO "D36"]
[WhiteElo "2296"]
[BlackElo "2427"]
[Annotator "TA"]
[PlyCount "141"]
[EventDate "2022.04.19"]
[EventType "team-tourn"]
[EventCountry "ITA"]
[SourceTitle "playchess.com"]
[Source "ChessBase"]
[SourceQuality "1"]
[TimeControl "40/5400+30:1800+30"]

{[%evp 22,141,0,-4,-6,-14,0,0,0,-14,0,0,0,-13,0,-11,-8,-24,-20,-36,-24,-25,-6,-17,0,0,0,-21,-8,-20,-20,-27,-13,-19,-24,-55,8,-8,-11,-92,0,-5,-14,-14,-14,-88,-87,-119,-115,-154,-139,-166,-171,-183,-137,-147,0,0,0,0,0,0,0,-469,-429,-494,-477,-423,-621,-598,-558,-543,-547,-483,-460,-647,-335,-297,-324,-224,0,0,0,0,0,0,0,0,0,0,0,0,0,0,0,0,0,0,0,0,0,0,0,0,0,0,0,0,0,0,0,0,0,0,0,0,0,0,0,0,0,0]} 1. d4 {[%emt 0:00:03]} d5 {[%emt 0:00:08]} 2. c4 {[%emt 0:00:47]} e6 {[%emt 0:00:09]} 3. Nc3 {[%emt 0:01:33]} Be7 {[%emt 0:00:45]} 4. Nf3 {[%emt 0:02:42]} Nf6 {[%emt 0:00:24]} 5. cxd5 {[%emt 0:04:02]} exd5 {[%emt 0:00:27]} 6. Bg5 {[%emt 0:00:12]} c6 {[%emt 0:02:01]} 7. Qc2 {[%emt 0:00:22]} g6 {[%emt 0:01:53]} 8. e3 {[%emt 0:00:36]} Bf5 {[%emt 0:01:21]} 9. Bd3 {[%emt 0:00:02]} Bxd3 {[%emt 0:00:09]} 10. Qxd3 {[%emt 0:00:02]} Nbd7 {[%emt 0:02:14]} 11. O-O {[%emt 0:00:24]} O-O {[%emt 0:00:26]} 12. Rfc1 {[%emt 0:11:18]} Re8 {[%emt 0:03:50] [#] D36: Queen's Gambit Declined: Exchange Variation: Main line (5 Bg5 c6 6 Qc2).} 13. Qd1 $146 {[%emt 0:10:20]} ({Predecessor:} 13. Nd2 Bd6 14. h3 Kg7 15. Ne2 h6 {½-½ (15) Berg,K (2417)-Miton,K (2629) Skanderborg 2010}) 13... Ne4 {[%emt 0:10:28]} 14. Bxe7 {[%emt 0:13:19]} Qxe7 {[%emt 0:00:21]} 15. Rab1 {[%emt 0:00:49]} a5 {[%emt 0:13:05]} 16. a3 {[%emt 0:15:25]} Nd6 {[%emt 0:06:05]} 17. Nd2 {[%emt 0:04:30]} Nf6 {[%emt 0:03:03]} 18. Qe2 {[%emt 0:08:03]} a4 {[%emt 0:52:41]} 19. Re1 {[%emt 0:02:23]} b5 {[%emt 0:00:00]} 20. f3 {[%emt 0:01:52]} Qa7 {[%emt 0:00:00]} 21. Qf2 {[%emt 0:05:13]} Rad8 {[%emt 0:00:00]} 22. Rbd1 {[%emt 0:01:56]} h5 {[%emt 0:00:00]} 23. h3 {[%emt 0:01:32]} Nf5 {[%emt 0:00:00]} 24. g4 {[%emt 0:00:59]} Nd6 {[%emt 0:00:00]} 25. e4 {[%emt 0:00:33] aiming for e5.} hxg4 {[%emt 0:00:00]} 26. hxg4 {[%emt 0:00:51]} dxe4 {[%emt 0:00:00]} 27. Ndxe4 {[%emt 0:01:10]} Ndxe4 {[%emt 0:00:00]} 28. Nxe4 {[%emt 0:00:05]} Nd5 {[%emt 0:00:00]} (28... Nxe4 $15 29. fxe4 Qe7) 29. Qg3 {[%emt 0:03:38]} (29. g5 $5 {[%cal Rf2h4]}) 29... Kg7 {[%emt 0:00:00]} 30. g5 {[%emt 0:00:47]} (30. Kf2 $11 {remains equal.}) 30... Qd7 {[%emt 0:00:00]} (30... Qc7 $1 $17 {[%cal Oe8e4] White must now prevent ...Rxe4!} 31. Kf2 Rh8 32. Qxc7 Nxc7) 31. Re2 {[%emt 0:02:29]} Qc7 {[%emt 0:00:00]} 32. Qxc7 {[%emt 0:04:14]} Nxc7 {[%emt 0:00:00]} 33. Kf2 {[%emt 0:02:26]} (33. Rc2 $11 {keeps the balance.}) 33... Rh8 $17 {[%emt 0:00:00]} 34. Kg3 {[%emt 0:00:51]} Ne6 {[%emt 0:00:10]} 35. Red2 {[%emt 0:00:04]} Rd5 {[%emt 0:02:03]} 36. f4 {[%emt 0:00:52]} Rhd8 {[%emt 0:00:53]} 37. Nf6 {[%emt 0:01:00] [#]} Rxd4 {[%emt 0:00:39]} (37... Nxg5 $1 $19 {[%mdl 512]} 38. Nxd5 (38. fxg5 $2 Rxg5+ 39. Kf2 Kxf6 $19) 38... Ne4+ 39. Kf3 Nxd2+ 40. Rxd2 Rxd5) 38. Rxd4 {[%emt 0:00:02]} Rxd4 {[%emt 0:01:05]} ({Better is} 38... Nxd4 $17 39. Kf2 Kf8) 39. Rxd4 $11 {[%emt 0:00:02]} Nxd4 $19 {[%emt 0:00:06][%mdl 4096] Endgame KN-KN} 40. Nd7 $1 {[%emt 0:00:05]} Nb3 {[%emt 0:03:13]} 41. Kf2 {[%emt 0:19:19]} Na5 {[%emt 0:17:08]} 42. Ne5 {[%emt 0:00:10][%mdl 8192]} (42. Ke3 $1 $11 {and White is okay.}) 42... f6 {[%emt 0:00:33]} 43. gxf6+ {[%emt 0:02:39]} Kxf6 {[%emt 0:02:09]} 44. Kf3 {[%emt 0:07:17]} Kf5 {[%emt 0:04:13]} 45. Nd3 {[%emt 0:01:22]} Nb3 {[%emt 0:05:58]} 46. Ke3 {[%emt 0:00:54]} c5 {[%emt 0:00:26][%cal Bc6c5,Bc5c4][%mdl 32] Prevents Nb4.} 47. Nf2 {[%emt 0:00:32]} Na5 {[%emt 0:02:59]} 48. Nd3 {[%emt 0:00:26]} (48. Kf3 $142 Ke6 49. Ke4) 48... Nb7 {[%emt 0:00:17]} 49. Kf3 {[%emt 0:00:26]} c4 {[%emt 0:00:36]} 50. Nb4 {[%emt 0:01:07] [#]} Nd6 $2 {[%emt 0:01:35]} (50... Ke6 $1 $19 {...Nc5 is the strong threat.} 51. Na2 Kd5 52. Nc3+ Kd4) 51. Nd5 {[%emt 0:00:08] The position is equal.} Ke6 {[%emt 0:01:18]} 52. Nc3 {[%emt 0:00:27]} Kd7 {[%emt 0:00:09] And now ...Kc6 would win.} 53. Kg4 $1 {[%emt 0:00:05]} Ke6 {[%emt 0:00:56]} 54. Kg5 {[%emt 0:00:18]} Kf7 {[%emt 0:00:08]} 55. Kg4 {[%emt 0:01:05]} Kf6 {[%emt 0:00:45]} 56. Nd5+ {[%emt 0:00:05]} Kg7 {[%emt 0:00:40]} 57. Nc3 {[%emt 0:00:16]} Kh6 {[%emt 0:00:47]} 58. Kh4 {[%emt 0:02:02]} Nf5+ {[%emt 0:00:11]} 59. Kg4 {[%emt 0:00:02]} Nd4 {[%emt 0:00:07]} 60. Kh4 {[%emt 0:00:18]} Kg7 {[%emt 0:00:28]} 61. Kg5 {[%emt 0:00:03]} Kf7 {[%emt 0:00:10]} 62. Ne4 {[%emt 0:00:21]} Nf3+ {[%emt 0:01:42]} 63. Kg4 {[%emt 0:00:06]} Ne1 {[%emt 0:00:18]} 64. Nd6+ {[%emt 0:00:48]} Kf6 {[%emt 0:00:10]} 65. Nxb5 {[%emt 0:00:14]} Nd3 {[%emt 0:00:02]} 66. Nc3 {[%emt 0:00:59]} Nxb2 {[%emt 0:00:05]} 67. Ne4+ {[%emt 0:00:19]} Ke6 {[%emt 0:00:29]} 68. Nc3 {[%emt 0:00:02]} Kf6 {[%emt 0:01:37]} 69. Ne4+ {[%emt 0:00:15]} Ke6 {[%emt 0:00:29] Strongly threatening ...Kd5.} 70. Nc3 {[%emt 0:00:03]} Kf6 {[%emt 0:00:45]} 71. Ne4+ {[%emt 0:05:38] And White is the lucky defender.  Weighted Error Value: White=0.26 (precise) /Black=0.25 (precise)} 1/2-1/2

[Event "Italian-ch Teams-B 2022"]
[Site "Montesilvano"]
[Date "2022.04.19"]
[Round "1.4"]
[White "Botta, Massimiliano"]
[Black "Socko, Monika"]
[Result "1-0"]
[ECO "C12"]
[WhiteElo "2217"]
[BlackElo "2393"]
[Annotator "TA"]
[PlyCount "159"]
[EventDate "2022.04.19"]
[EventType "team-tourn"]
[EventCountry "ITA"]
[SourceTitle "playchess.com"]
[Source "ChessBase"]
[SourceQuality "1"]
[TimeControl "40/5400+30:1800+30"]

{[%evp 11,159,0,0,0,14,0,34,43,23,0,0,-18,0,0,55,36,164,163,161,160,165,163,160,161,168,168,220,168,208,168,168,168,168,168,182,168,209,210,220,163,226,217,218,222,214,203,203,206,205,212,271,251,290,283,284,247,257,232,232,232,219,180,240,238,269,240,233,226,219,219,279,203,205,158,176,143,152,153,144,156,142,145,139,145,172,70,184,108,120,94,109,105,129,143,166,158,178,173,172,14,184,195,157,197,239,219,220,174,367,333,477,452,480,506,462,362,333,206,370,367,365,364,357,314,348,316,282,0,313,289,1430,926,1544,1505,1381,1239,988,850,799,784,751,693,1148,1148,29969,29969,29989,326,29988,29987]} 1. e4 {[%emt 0:00:14]} e6 {[%emt 0:00:06]} 2. d4 {[%emt 0:00:06]} d5 {[%emt 0:00:05]} 3. Nc3 {[%emt 0:00:22]} Nf6 {[%emt 0:00:37]} 4. Bg5 {[%emt 0:00:43]} Bb4 {[%emt 0:00:15]} 5. e5 {[%emt 0:00:12]} h6 {[%emt 0:00:05]} 6. Bc1 {[%emt 0:01:20]} Ne4 {[%emt 0:00:33]} 7. Qg4 {[%emt 0:00:33] C12: French: Classical System: McCutcheon Variation.} g6 {[%emt 0:00:25] 7...g6 scores better than 7...Kf8.} (7... Nxc3 8. Qxg7 Kd7 9. Bd2 $16) (7... Kf8 $5 {[%cal Rc7c5]}) 8. a3 {[%emt 0:00:07]} Ba5 {[%emt 0:05:41]} 9. Nge2 {[%emt 0:15:25] White is slightly better.} c5 {[%emt 0:07:22] Prevents b4.} 10. b4 {[%emt 0:00:26]} (10. dxc5 $5 {[%cal Rb2b4]} Qc7 11. Qf4 Bxc3+ 12. Nxc3 $11) 10... Nxc3 {[%emt 0:02:46]} 11. Nxc3 {[%emt 0:00:30]} cxb4 {[%emt 0:04:55]} 12. Nb5 {[%emt 0:01:00] [#]} (12. Bb5+ Bd7 13. axb4 Bxb4 $17) 12... Nc6 $146 {[%emt 0:06:50]} (12... b3+ $11 13. c3 a6 14. Nd6+ Qxd6 $1 15. exd6 Bxc3+ 16. Bd2 Bxa1) ({Predecessor:} 12... b3+ 13. c3 Bc7 14. Qd1 Bd7 15. a4 Bxb5 16. Bxb5+ Nd7 17. Ba3 a6 18. Bd3 Ba5 {0-1 (41) Aveskulov,V (2544)-Bartel,M (2602) Beijing 2008}) 13. Bd3 {[%emt 0:25:59]} Ne7 {[%emt 0:14:43]} ({Black should try} 13... b3+ $14 14. Kf1 Bc7) 14. axb4 $18 {[%emt 0:02:43]} Bc7 {[%emt 0:04:00] Against Nd6+} 15. Rxa7 {[%emt 0:10:07]} Rxa7 {[%emt 0:01:05]} 16. Nxa7 {[%emt 0:00:04]} Bd7 {[%emt 0:00:06]} 17. Nb5 {[%emt 0:00:27][%cal Ba7b5,Bb5a3,Ba3c2,Bc2e1,Be1f3,Bf3h4][%mdl 32] 0x0.00299f40aea5dp-1022s more active pieces.} Nf5 {[%emt 0:04:02]} 18. O-O {[%emt 0:00:54]} Kf8 {[%emt 0:01:27]} (18... O-O $142 19. c3 Bxb5 20. Bxb5 h5) 19. c3 {[%emt 0:04:32]} Kg7 {[%emt 0:01:50]} 20. Bd2 {[%emt 0:02:33]} Bb8 {[%emt 0:00:41]} 21. Na3 {[%emt 0:01:11]} f6 {[%emt 0:02:41]} 22. f4 {[%emt 0:01:09]} h5 {[%emt 0:03:53]} 23. Qf3 {[%emt 0:00:24]} Nh6 {[%emt 0:01:24]} 24. Nc2 {[%emt 0:00:42]} Rf8 {[%emt 0:03:52]} 25. Qg3 {[%emt 0:05:15]} f5 {[%emt 0:01:04]} (25... Qe8 {might work better.} 26. Ra1 Bb5) 26. Ra1 {[%emt 0:00:57]} Nf7 {[%emt 0:00:52]} 27. Ne1 {[%emt 0:01:26]} Bc7 {[%emt 0:04:53]} 28. Nf3 {[%emt 0:00:13]} Qe8 {[%emt 0:00:56]} 29. Nh4 {[%emt 0:02:22]} Nh8 {[%emt 0:03:20]} 30. Be2 {[%emt 0:00:09]} Kh7 {[%emt 0:00:23]} 31. Qd3 {[%emt 0:00:08] Prevents Bb5.} Bb6 {[%emt 0:01:17]} 32. Nf3 {[%emt 0:00:16]} Nf7 {[%emt 0:00:12]} 33. Be1 {[%emt 0:00:05]} Qc8 {[%emt 0:00:32]} 34. Bh4 {[%emt 0:01:36]} Bd8 {[%emt 0:01:00]} 35. Bxd8 {[%emt 0:02:22]} Qxd8 {[%emt 0:00:09]} 36. h3 {[%emt 0:00:14]} Kg7 {[%emt 0:00:21]} (36... g5 $142 37. fxg5 Nxg5) 37. Qd2 {[%emt 0:01:57]} Qb6 {[%emt 0:02:08]} 38. Ra5 {[%emt 0:01:14]} Rc8 {[%emt 0:00:49]} 39. Bd3 {[%emt 0:00:48]} Qd8 {[%emt 0:03:00]} 40. Kh2 {[%emt 0:01:45]} Qb6 {[%emt 0:00:34]} 41. Qb2 {[%emt 0:30:41]} Qd8 {[%emt 0:30:27]} 42. Qa3 {[%emt 0:00:40]} g5 {[%emt 0:02:14]} 43. g3 {[%emt 0:08:46]} h4 {[%emt 0:02:22]} 44. Qc1 {[%emt 0:02:15][%cal Rf4g5]} hxg3+ {[%emt 0:05:15]} 45. Kxg3 {[%emt 0:00:05][%cal Rf4g5]} gxf4+ {[%emt 0:00:10]} 46. Kxf4 {[%emt 0:04:33]} Qh8 {[%emt 0:08:37] ...Qh6+ is the strong threat.} 47. Kg3 {[%emt 0:00:05]} Qh5 {[%emt 0:00:50]} 48. Ra2 {[%emt 0:02:15]} (48. Kf2 Qxh3 49. Ra7 Nh6 50. Qg5+ (50. Rxb7 Ng4+ 51. Ke2 Qg2+ 52. Kd1 Qxf3+ $19) 50... Kf8 51. Qf6+ (51. Rxb7 $2 Ng4+ 52. Ke1 Qxf3 $19) 51... Ke8 52. Qh8+ Ke7 53. Qg7+ Kd8 $11) (48. Ra7 $18) 48... Rh8 {[%emt 0:00:00]} (48... Rg8 $1 $14) 49. Rh2 {[%emt 0:00:00]} ({Much less strong is} 49. Kf2 $6 Qxh3 50. Qg1+ Qg4 $14) ({White should play} 49. Rg2 $18) 49... Kf8 {[%emt 0:00:00]} 50. Qf4 {[%emt 0:00:00]} Ba4 {[%emt 0:00:00]} 51. Rh1 {[%emt 0:00:00]} ({Don't do} 51. Kf2 Bd1 $14) 51... Rg8+ {[%emt 0:00:00]} 52. Kf2 {[%emt 0:00:00][%cal Bg3f2,Bf2e3,Be3f4][%mdl 32]} Ng5 {[%emt 0:00:00]} 53. Nxg5 {[%emt 0:00:00]} Rxg5 {[%emt 0:00:00]} 54. Be2 {[%emt 0:00:00] Dancing on a razor blade.} Qh6 {[%emt 0:00:00][%cal Og5g2] Hoping for ...Rg2+!} 55. Bf3 {[%emt 0:00:00] Prevents Rg2+.} (55. Rf1 $18) 55... Rg2+ $2 {[%emt 0:02:31]} 56. Ke3 $1 {[%emt 0:00:00]} Qxf4+ {[%emt 0:00:02]} 57. Kxf4 {[%emt 0:00:00][%mdl 4096] Endgame KRB-KRB} Rc2 {[%emt 0:00:03]} 58. h4 {[%emt 0:03:25]} Rxc3 {[%emt 0:00:28]} 59. h5 {[%emt 0:00:03]} Kg7 $2 {[%emt 0:02:45]} (59... Be8) 60. Rg1+ {[%emt 0:00:36]} Kh7 {[%emt 0:03:52]} (60... Kh8 $142 61. Rg6 Rd3 62. Rxe6 Rxd4+ 63. Kg5 (63. Kxf5 Bd7 $11) 63... Rd3) 61. Rg6 {[%emt 0:00:03]} Bd7 {[%emt 0:00:00]} 62. Rf6 {[%emt 0:00:08] Black must now prevent Rf7+.} Bc8 {[%emt 0:00:00]} 63. Be2 {[%emt 0:00:47]} Rc2 {[%emt 0:00:00]} 64. Bd3 {[%emt 0:00:18]} Rf2+ $2 {[%emt 0:00:00]} (64... Rg2 65. Rf7+ Kh6) 65. Ke3 {[%emt 0:00:09]} Rg2 {[%emt 0:00:00] [#]} 66. Be2 $1 {[%emt 0:02:18]} Kg8 {[%emt 0:00:41]} 67. Bf3 {[%emt 0:00:51]} Rg1 {[%emt 0:00:23]} 68. Kf4 {[%emt 0:00:11]} Bd7 {[%emt 0:00:33]} 69. Ke3 $2 {[%emt 0:00:55]} (69. h6 $18) 69... Rg7 $2 {[%emt 0:00:33][%mdl 8192]} (69... Bc8 $1 $11 {and Black stays safe.}) 70. h6 {[%emt 0:01:40]} Re7 $2 {[%emt 0:00:44]} (70... Rg3 71. Kf4 Rg1) 71. Kf4 {[%emt 0:01:31]} Ba4 {[%emt 0:01:25]} 72. Kg5 {[%emt 0:00:10]} Be8 {[%emt 0:00:14]} 73. Be2 {[%emt 0:01:02]} Kh7 {[%emt 0:00:39]} 74. Rf8 {[%emt 0:00:16] White threatens Kf6 and mate.} Bg6 {[%emt 0:01:04]} 75. Kf6 {[%emt 0:00:29]} Rc7 {[%emt 0:00:38]} 76. Kxe6 {[%emt 0:00:10]} Kxh6 {[%emt 0:00:11]} 77. Kf6 {[%emt 0:00:26] Threatening mate with e6.} f4 {[%emt 0:00:39]} 78. e6 {[%emt 0:00:27]} Rc1 {[%emt 0:01:16]} 79. Rh8+ {[%emt 0:00:17]} Bh7 {[%emt 0:00:00]} 80. Bd3 {[%emt 0:00:01] Weighted Error Value: White=0.19 (very precise) /Black=0.29 (precise)} 1-0